fUST/lending_fUST_20240429
["ID","MTS","AMOUNT","RATE_DAILY","PERIOD"]
[324855613,1714373488310,-604.09,0.00017808,2]
[324855614,1714373488320,-500.0,0.00017808,2]
[324855615,1714373488330,-500.0,0.00017808,2]
[324855616,1714373488339,-693.58,0.00017808,2]
[324855617,1714373488349,-598.14,0.00017808,2]
[324855618,1714373488358,-591.07,0.00017808,2]
[324855619,1714373488368,-673.38,0.00017808,2]
[324855620,1714373488378,-533.22,0.00017808,2]
[324855621,1714373488387,-1230.36,0.00017808,2]
[324855622,1714373488398,-500.0,0.00017808,2]
[324855623,1714373488408,-1147.49,0.00017808,2]
[324855624,1714373488418,-1302.49,0.00017808,2]
[324855625,1714373488428,-844.49,0.00017808,2]
[324855626,1714373488437,-500.0,0.00017808,2]
[324855627,1714373488447,-614.75,0.00017808,2]
[324855628,1714373488457,-1388.78,0.00017808,2]
[324855629,1714373488467,-623.41,0.00017808,2]
[324855630,1714373488476,-797.81,0.00017808,2]
[324855631,1714373488486,-590.29,0.00017808,2]
[324855632,1714373488499,-500.0,0.00017808,2]
[324855633,1714373488508,-807.83,0.00017808,2]
[324855634,1714373488518,-607.0,0.00017808,2]
[324855635,1714373488528,-327.00278129,0.00017808,2]
[324855636,1714373488538,-940.83,0.00017808,2]
[324855637,1714373488548,-500.0,0.00017808,2]
[324855638,1714373488558,-782.16,0.00017808,2]
[324855639,1714373488568,-500.0,0.00017808,2]
[324855640,1714373488578,-520.06,0.00017808,2]
[324855641,1714373488587,-564.0,0.00017808,2]
[324855642,1714373488597,-851.11,0.00017808,2]
[324855643,1714373488607,-510.47,0.00017808,2]
[324855644,1714373488791,-500.0,0.00017808,2]
[324855645,1714373488801,-1533.33,0.00017808,2]
[324855646,1714373488811,-1895.96,0.00017808,2]
[324855647,1714373488822,-1322.31,0.00017808,2]
[324855648,1714373488831,-500.0,0.00017808,2]
[324855649,1714373488841,-1437.53,0.00017808,2]
[324855650,1714373488850,-1191.98,0.00017808,2]
[324855651,1714373488860,-500.0,0.00017808,2]
[324855652,1714373488869,-1134.6,0.00017808,2]
[324855653,1714373488879,-1094.75,0.00017808,2]
[324855654,1714373488889,-510.32,0.00017808,2]
[324855655,1714373488898,-2552.95,0.00017808,2]
[324855656,1714373488907,-1704.43,0.00017808,2]
[324855657,1714373488917,-1486.42,0.00017808,2]
[324855658,1714373488927,-500.0,0.00017808,2]
[324855659,1714373488937,-500.0,0.00017808,2]
[324855660,1714373488947,-500.0,0.00017808,2]
[324855661,1714373488956,-725.26,0.00017808,2]
[324855662,1714373488967,-844.8,0.00017808,2]
[324855663,1714373488976,-663.85,0.00017808,2]
[324855664,1714373488986,-590.93,0.00017808,2]
[324855665,1714373488997,-963.94,0.00017808,2]
[324855666,1714373489007,-790.18,0.00017808,2]
[324855667,1714373489017,-1385.15,0.00017808,2]
[324855668,1714373489027,-904.16,0.00017808,2]
[324855669,1714373489038,-556.73,0.00017808,2]
[324855670,1714373489048,-500.0,0.00017808,2]
[324855671,1714373489057,-2612.66,0.00017808,2]
[324855672,1714373489067,-670.19,0.00017808,2]
[324855673,1714373489077,-5705.05,0.00017808,2]
[324855674,1714373489087,-537.78491882,0.00017808,2]
[324855675,1714373489096,-3685.88,0.00017808,2]
[324855676,1714373489107,-3055.4,0.00017808,2]
[324855677,1714373489117,-500.0,0.00017808,2]
[324855678,1714373489127,-943.99,0.00017808,2]
[324855679,1714373489136,-500.0,0.00017808,2]
[324855680,1714373489146,-500.0,0.00017808,2]
[324855681,1714373489155,-676.52,0.00017808,2]
[324855682,1714373489165,-2057.47,0.00017808,2]
[324855683,1714373489174,-598.25,0.00017808,2]
[324855684,1714373489184,-1272.21,0.00017808,2]
[324855685,1714373489195,-7316.87,0.00017808,2]
[324855686,1714373489213,-726.9,0.00017808,2]
[324855687,1714373489223,-797.11,0.00017808,2]
[324855688,1714373489233,-604.72,0.00017808,2]
[324855689,1714373489244,-500.0,0.00017808,2]
[324855690,1714373489254,-1382.46,0.00017808,2]
[324855691,1714373489264,-2899.35,0.00017808,2]
[324855692,1714373489274,-643.79,0.00017808,2]
[324855693,1714373489284,-1036.38,0.00017808,2]
[324855694,1714373489294,-500.0,0.00017808,2]
[324855695,1714373489304,-3783.63,0.00017808,2]
[324855696,1714373489315,-505.70850888,0.00017808,2]
[324855697,1714373489324,-567.55,0.00017808,2]
[324855698,1714373489334,-500.0,0.00017808,2]
[324855699,1714373489344,-1762.71,0.00017808,2]
[324855700,1714373489354,-544.02,0.00017808,2]
[324855701,1714373489364,-500.0,0.00017808,2]
[324855702,1714373489374,-909.69,0.00017808,2]
[324855703,1714373489383,-1544.95,0.00017808,2]
[324855704,1714373489393,-566.35,0.00017808,2]
[324855705,1714373489403,-1632.08,0.00017808,2]
[324855706,1714373489413,-2536.93,0.00017808,2]
[324855707,1714373489423,-16167.34,0.00017808,2]
[324855708,1714373489433,-3184.94,0.00017808,2]
[324855709,1714373489444,-844.47,0.00017808,2]
[324855710,1714373489454,-1248.72,0.00017808,2]
[324855711,1714373489464,-705.06,0.00017808,2]
[324855712,1714373489474,-5367.9,0.00017808,2]
[324855713,1714373489484,-500.0,0.00017808,2]
[324855714,1714373489495,-603.55,0.00017808,2]
[324855715,1714373489505,-1338.49,0.00017808,2]
[324855716,1714373489516,-536.01703609,0.00017808,2]
[324855717,1714373489526,-752.29,0.00017808,2]
[324855718,1714373489536,-803.38,0.00017808,2]
[324855719,1714373489546,-500.0,0.00017808,2]
[324855720,1714373489555,-12574.48,0.00017808,2]
[324855721,1714373489565,-12192.24,0.00017808,2]
[324855722,1714373489575,-998.22,0.00017808,2]
[324855723,1714373489585,-5507.92,0.00017808,2]
[324855724,1714373489595,-589.37,0.00017808,2]
[324855725,1714373489604,-992.33,0.00017808,2]
[324855726,1714373489614,-1332.9,0.0001787,3]
[324855727,1714373489624,-823.0,0.00017902,2]
[324855728,1714373489633,-153.0,0.00017973,2]
[324855729,1714373489643,-153.0,0.00017973,2]
[324855730,1714373489653,-308.03084457,0.00017973,2]
[324855731,1714373489662,-3134.48557274,0.00018,7]
[324855732,1714373489672,-189.95784672,0.00018,2]
[324855733,1714373489682,-3387.72625463,0.00018,2]
[324855734,1714373489691,-157.09093927,0.00018,2]
[324855735,1714373489700,-154.79876161,0.00018,2]
[324855736,1714373489709,-1674.76230276,0.00018,2]
[324855737,1714373489719,-177.75,0.00018,2]
[324855738,1714373489729,-1029.5363204,0.00018,2]
[324855739,1714373489739,-620.0,0.00018044,2]
[324855740,1714373489750,-523.85,0.00018082,2]
[324855741,1714373489759,-508.84,0.00018082,2]
[324855742,1714373489768,-500.0,0.00018082,2]
[324855743,1714373489778,-500.0,0.00018082,2]
[324855744,1714373489787,-625.82,0.00018082,2]
[324855745,1714373489796,-500.0,0.00018082,2]
[324855746,1714373489805,-500.0,0.00018082,2]
[324855747,1714373489816,-500.0,0.00018082,2]
[324855748,1714373489826,-1626.12,0.00018082,2]
[324855749,1714373489835,-500.0,0.00018082,2]
[324855750,1714373489844,-611.54,0.00018082,2]
[324855751,1714373489854,-559.33,0.00018082,2]
[324855752,1714373489863,-608.08,0.00018082,2]
[324855753,1714373489872,-429.70487557,0.00018082,2]
[324855754,1714373489882,-687.07,0.00018082,2]
[324855755,1714373489891,-504.72,0.00018082,2]
[324855756,1714373489901,-252.77403031,0.00018082,2]
[324855757,1714373489911,-832.64,0.00018082,2]
[324855758,1714373489920,-515.01,0.00018082,2]
[324855759,1714373489930,-1105.2,0.00018082,2]
[324855760,1714373489940,-630.39,0.00018082,2]
[324855761,1714373489950,-604.09,0.00018082,2]
[324855762,1714373489961,-500.0,0.00018082,2]
[324855763,1714373489971,-500.0,0.00018082,2]
[324855764,1714373489981,-693.58,0.00018082,2]
[324855765,1714373489992,-598.14,0.00018082,2]
[324855766,1714373490005,-591.07,0.00018082,2]
[324855767,1714373490015,-673.38,0.00018082,2]
[324855768,1714373490024,-533.22,0.00018082,2]
[324855769,1714373490034,-1230.36,0.00018082,2]
[324855770,1714373490044,-500.0,0.00018082,2]
[324855771,1714373490054,-1147.49,0.00018082,2]
[324855772,1714373490064,-1302.49,0.00018082,2]
[324855773,1714373490074,-844.49,0.00018082,2]
[324855774,1714373490084,-500.0,0.00018082,2]
[324855775,1714373490094,-614.75,0.00018082,2]
[324855776,1714373490104,-1388.78,0.00018082,2]
[324855777,1714373490114,-623.41,0.00018082,2]
[324855778,1714373490124,-797.81,0.00018082,2]
[324855779,1714373490134,-590.29,0.00018082,2]
[324855780,1714373490143,-500.0,0.00018082,2]
[324855781,1714373490153,-807.83,0.00018082,2]
[324855782,1714373490162,-607.0,0.00018082,2]
[324855783,1714373490173,-940.83,0.00018082,2]
[324855784,1714373490182,-500.0,0.00018082,2]
[324855785,1714373490191,-782.16,0.00018082,2]
[324855786,1714373490203,-500.0,0.00018082,2]
[324855787,1714373490213,-520.06,0.00018082,2]
[324855788,1714373490223,-564.0,0.00018082,2]
[324855789,1714373490240,-851.11,0.00018082,2]
[324855790,1714373490253,-510.47,0.00018082,2]
[324855791,1714373490263,-500.0,0.00018082,2]
[324855792,1714373490272,-1533.33,0.00018082,2]
[324855793,1714373490281,-1895.96,0.00018082,2]
[324855794,1714373490292,-1322.31,0.00018082,2]
[324855795,1714373490302,-500.0,0.00018082,2]
[324855796,1714373490313,-1437.53,0.00018082,2]
[324855797,1714373490323,-1191.98,0.00018082,2]
[324855798,1714373490333,-500.0,0.00018082,2]
[324855799,1714373490343,-1134.6,0.00018082,2]
[324855800,1714373490352,-1094.75,0.00018082,2]
[324855801,1714373490361,-2552.95,0.00018082,2]
[324855802,1714373490371,-510.32,0.00018082,2]
[324855803,1714373490380,-1704.43,0.00018082,2]
[324855804,1714373490390,-1486.42,0.00018082,2]
[324855805,1714373490399,-500.0,0.00018082,2]
[324855806,1714373490409,-500.0,0.00018082,2]
[324855807,1714373490419,-500.0,0.00018082,2]
[324855808,1714373490428,-725.26,0.00018082,2]
[324855809,1714373490438,-844.8,0.00018082,2]
[324855810,1714373490448,-663.85,0.00018082,2]
[324855811,1714373490457,-590.93,0.00018082,2]
[324855812,1714373490467,-963.94,0.00018082,2]
[324855813,1714373490477,-790.18,0.00018082,2]
[324855814,1714373490487,-1385.15,0.00018082,2]
[324855815,1714373490500,-904.16,0.00018082,2]
[324855816,1714373490509,-556.73,0.00018082,2]
[324855817,1714373490519,-500.0,0.00018082,2]
[324855818,1714373490529,-2612.66,0.00018082,2]
[324855819,1714373490539,-670.19,0.00018082,2]
[324855820,1714373490549,-5705.05,0.00018082,2]
[324855821,1714373490559,-3685.88,0.00018082,2]
[324855822,1714373490569,-3055.4,0.00018082,2]
[324855823,1714373490579,-500.0,0.00018082,2]
[324855824,1714373490590,-943.99,0.00018082,2]
[324855825,1714373490600,-309.93322802,0.00018082,2]
[324855826,1714373490610,-500.0,0.00018082,2]
[324855827,1714373490620,-676.52,0.00018082,2]
[324855828,1714373490630,-2057.47,0.00018082,2]
[324855829,1714373490639,-598.25,0.00018082,2]
[324855830,1714373490649,-1272.21,0.00018082,2]
[324855831,1714373490660,-7316.87,0.00018082,2]
[324855832,1714373490670,-726.9,0.00018082,2]
[324855833,1714373490680,-797.11,0.00018082,2]
[324855834,1714373490690,-604.72,0.00018082,2]
[324855835,1714373490700,-500.0,0.00018082,2]
[324855836,1714373490710,-1382.46,0.00018082,2]
[324855837,1714373490720,-2899.35,0.00018082,2]
[324855838,1714373490730,-643.79,0.00018082,2]
[324855839,1714373490740,-1036.38,0.00018082,2]
[324855840,1714373490755,-500.0,0.00018082,2]
[324855841,1714373490765,-3783.63,0.00018082,2]
[324855842,1714373490775,-567.55,0.00018082,2]
[324855843,1714373490785,-500.0,0.00018082,2]
[324855844,1714373490795,-1762.71,0.00018082,2]
[324855845,1714373490805,-544.02,0.00018082,2]
[324855846,1714373490815,-500.0,0.00018082,2]
[324855847,1714373490825,-909.69,0.00018082,2]
[324855848,1714373490834,-1544.95,0.00018082,2]
[324855849,1714373490846,-566.35,0.00018082,2]
[324855850,1714373490855,-1632.08,0.00018082,2]
[324855851,1714373490865,-2536.93,0.00018082,2]
[324855852,1714373490874,-16167.34,0.00018082,2]
[324855853,1714373490885,-3184.94,0.00018082,2]
[324855854,1714373490895,-844.47,0.00018082,2]
[324855855,1714373490904,-1248.72,0.00018082,2]
[324855856,1714373490915,-705.06,0.00018082,2]
[324855857,1714373490924,-5367.9,0.00018082,2]
[324855858,1714373490935,-500.0,0.00018082,2]
[324855859,1714373490945,-603.55,0.00018082,2]
[324855860,1714373490956,-1338.49,0.00018082,2]
[324855861,1714373490967,-752.29,0.00018082,2]
[324855862,1714373490978,-803.38,0.00018082,2]
[324855863,1714373490988,-500.0,0.00018082,2]
[324855864,1714373491006,-12574.48,0.00018082,2]
[324855865,1714373491017,-12192.24,0.00018082,2]
[324855866,1714373491027,-998.22,0.00018082,2]
[324855867,1714373491038,-5507.92,0.00018082,2]
[324855868,1714373491048,-589.37,0.00018082,2]
[324855869,1714373491058,-992.33,0.00018082,2]
[324855870,1714373491068,-150.0,0.00018084,2]
[324855871,1714373491078,-823.0,0.00018098,2]
[324855872,1714373491088,-523.85,0.00018356,2]
[324855873,1714373491098,-508.84,0.00018356,2]
[324855874,1714373491108,-500.0,0.00018356,2]
[324855875,1714373491118,-500.0,0.00018356,2]
[324855876,1714373491127,-625.82,0.00018356,2]
[324855877,1714373491137,-500.0,0.00018356,2]
[324855878,1714373491147,-500.0,0.00018356,2]
[324855879,1714373491157,-500.0,0.00018356,2]
[324855880,1714373491167,-1626.12,0.00018356,2]
[324855881,1714373491177,-500.0,0.00018356,2]
[324855882,1714373491188,-611.54,0.00018356,2]
[324855883,1714373491202,-559.33,0.00018356,2]
[324855884,1714373491212,-608.08,0.00018356,2]
[324855885,1714373491221,-687.07,0.00018356,2]
[324855886,1714373491356,-504.72,0.00018356,2]
[324855887,1714373491367,-832.64,0.00018356,2]
[324855888,1714373491378,-515.01,0.00018356,2]
[324855889,1714373491389,-1105.2,0.00018356,2]
[324855890,1714373491399,-630.39,0.00018356,2]
[324855891,1714373491411,-604.09,0.00018356,2]
[324855892,1714373491421,-500.0,0.00018356,2]
[324855893,1714373491432,-372.34,0.00018356,2]
[324855894,1714373491442,-693.58,0.00018356,2]
[324855895,1714373491452,-598.14,0.00018356,2]
[324855896,1714373491462,-591.07,0.00018356,2]
[324855897,1714373491472,-673.38,0.00018356,2]
[324855898,1714373491482,-533.22,0.00018356,2]
[324855899,1714373491492,-1230.36,0.00018356,2]
[324855900,1714373491506,-500.0,0.00018356,2]
[324855901,1714373491519,-1147.49,0.00018356,2]
[324855902,1714373491530,-1302.49,0.00018356,2]
[324855903,1714373491542,-844.49,0.00018356,2]
[324855904,1714373491553,-621.03676108,0.00018356,2]
[324855905,1714373491565,-614.75,0.00018356,2]
[324855906,1714373491575,-1388.78,0.00018356,2]
[324855907,1714373491586,-623.41,0.00018356,2]
[324855908,1714373491598,-797.81,0.00018356,2]
[324855909,1714373491608,-590.29,0.00018356,2]
[324855910,1714373491619,-500.0,0.00018356,2]
[324855911,1714373491630,-807.83,0.00018356,2]
[324855912,1714373491641,-607.0,0.00018356,2]
[324855913,1714373491652,-940.83,0.00018356,2]
[324855914,1714373491663,-500.0,0.00018356,2]
[324855915,1714373491673,-782.16,0.00018356,2]
[324855916,1714373491683,-500.0,0.00018356,2]
[324855917,1714373491694,-520.06,0.00018356,2]
[324855918,1714373491704,-564.0,0.00018356,2]
[324855919,1714373491714,-851.11,0.00018356,2]
[324855920,1714373491724,-510.47,0.00018356,2]
[324855921,1714373491734,-500.0,0.00018356,2]
[324855922,1714373491748,-1533.33,0.00018356,2]
[324855923,1714373491758,-1895.96,0.00018356,2]
[324855924,1714373491768,-1322.31,0.00018356,2]
[324855925,1714373491778,-500.0,0.00018356,2]
[324855926,1714373491788,-1437.53,0.00018356,2]
[324855927,1714373491798,-1191.98,0.00018356,2]
[324855928,1714373491809,-214.57971658,0.00018356,2]
[324855929,1714373491818,-1134.6,0.00018356,2]
[324855930,1714373491828,-1094.75,0.00018356,2]
[324855931,1714373491838,-510.32,0.00018356,2]
[324855932,1714373491848,-2552.95,0.00018356,2]
[324855933,1714373491858,-1704.43,0.00018356,2]
[324855934,1714373491868,-1486.42,0.00018356,2]
[324855935,1714373491878,-500.0,0.00018356,2]
[324855936,1714373491888,-500.0,0.00018356,2]
[324855937,1714373491898,-500.0,0.00018356,2]
[324855938,1714373491908,-725.26,0.00018356,2]
[324855939,1714373491917,-844.8,0.00018356,2]
[324855940,1714373491927,-663.85,0.00018356,2]
[324855941,1714373491937,-590.93,0.00018356,2]
[324855942,1714373491946,-963.94,0.00018356,2]
[324855943,1714373491956,-790.18,0.00018356,2]
[324855944,1714373491967,-1385.15,0.00018356,2]
[324855945,1714373491976,-904.16,0.00018356,2]
[324855946,1714373491986,-556.73,0.00018356,2]
[324855947,1714373491999,-500.0,0.00018356,2]
[324855948,1714373492008,-2612.66,0.00018356,2]
[324855949,1714373492018,-670.19,0.00018356,2]
[324855950,1714373492028,-5705.05,0.00018356,2]
[324855951,1714373492038,-3685.88,0.00018356,2]
[324855952,1714373492047,-3055.4,0.00018356,2]
[324855953,1714373492058,-500.0,0.00018356,2]
[324855954,1714373492068,-943.99,0.00018356,2]
[324855955,1714373492078,-500.0,0.00018356,2]
[324855956,1714373492089,-676.52,0.00018356,2]
[324855957,1714373492099,-2057.47,0.00018356,2]
[324855958,1714373492109,-598.25,0.00018356,2]
[324855959,1714373492119,-1272.21,0.00018356,2]
[324855960,1714373492128,-7316.87,0.00018356,2]
[324855961,1714373492138,-726.9,0.00018356,2]
[324855962,1714373492148,-797.11,0.00018356,2]
[324855963,1714373492158,-604.72,0.00018356,2]
[324855964,1714373492168,-500.0,0.00018356,2]
[324855965,1714373492178,-1382.46,0.00018356,2]
[324855966,1714373492189,-2899.35,0.00018356,2]
[324855967,1714373492199,-643.79,0.00018356,2]
[324855968,1714373492209,-1036.38,0.00018356,2]
[324855969,1714373492219,-353.4404207,0.00018356,2]
[324855970,1714373492230,-3783.63,0.00018356,2]
[324855971,1714373492248,-567.55,0.00018356,2]
[324855972,1714373492258,-500.0,0.00018356,2]
[324855973,1714373492268,-1762.71,0.00018356,2]
[324855974,1714373492278,-544.02,0.00018356,2]
[324855975,1714373492288,-500.0,0.00018356,2]
[324855976,1714373492298,-909.69,0.00018356,2]
[324855977,1714373492307,-1544.95,0.00018356,2]
[324855978,1714373492317,-566.35,0.00018356,2]
[324855979,1714373492327,-1632.08,0.00018356,2]
[324855980,1714373492337,-2536.93,0.00018356,2]
[324855981,1714373492347,-16167.34,0.00018356,2]
[324855982,1714373492356,-3184.94,0.00018356,2]
[324855983,1714373492365,-844.47,0.00018356,2]
[324855984,1714373492375,-1248.72,0.00018356,2]
[324855985,1714373492384,-705.06,0.00018356,2]
[324855986,1714373492394,-5367.9,0.00018356,2]
[324855987,1714373492404,-500.0,0.00018356,2]
[324855988,1714373492413,-603.55,0.00018356,2]
[324855989,1714373492423,-1338.49,0.00018356,2]
[324855990,1714373492432,-752.29,0.00018356,2]
[324855991,1714373492442,-803.38,0.00018356,2]
[324855992,1714373492452,-500.0,0.00018356,2]
[324855993,1714373492462,-12574.48,0.00018356,2]
[324855994,1714373492471,-12192.24,0.00018356,2]
[324855995,1714373492481,-998.22,0.00018356,2]
[324855996,1714373492490,-589.37,0.00018356,2]
[324855997,1714373492504,-5507.92,0.00018356,2]
[324855998,1714373492514,-992.33,0.00018356,2]
[324855999,1714373492523,-203.7672836,0.00018356,2]
[324856000,1714373492532,-203.7672836,0.00018356,2]
[324856001,1714373492541,-203.7672836,0.00018356,2]
[324856002,1714373492550,-203.7672836,0.00018356,2]
[324856003,1714373492559,-203.7672836,0.00018356,2]
[324856004,1714373492569,-203.7672836,0.00018356,2]
[324856005,1714373492579,-297.2306923,0.00018356,2]
[324856006,1714373492588,-306.0,0.00018356,2]
[324856007,1714373492598,-608.25241702,0.000185,2]
[324856008,1714373492606,-1332.9,0.0001854,3]
[324856009,1714373492616,-523.85,0.0001863,2]
[324856010,1714373492625,-508.84,0.0001863,2]
[324856011,1714373492635,-572.40510806,0.0001863,2]
[324856012,1714373492645,-500.0,0.0001863,2]
[324856013,1714373492654,-625.82,0.0001863,2]
[324856014,1714373492663,-500.0,0.0001863,2]
[324856015,1714373492672,-500.0,0.0001863,2]
[324856016,1714373492682,-500.0,0.0001863,2]
[324856017,1714373492691,-1626.12,0.0001863,2]
[324856018,1714373492701,-500.0,0.0001863,2]
[324856019,1714373492711,-611.54,0.0001863,2]
[324856020,1714373492720,-559.33,0.0001863,2]
[324856021,1714373492729,-608.08,0.0001863,2]
[324856022,1714373492739,-687.07,0.0001863,2]
[324856023,1714373492752,-504.72,0.0001863,2]
[324856024,1714373492762,-832.64,0.0001863,2]
[324856025,1714373492772,-515.01,0.0001863,2]
[324856026,1714373492782,-1105.2,0.0001863,2]
[324856027,1714373492792,-630.39,0.0001863,2]
[324856028,1714373492803,-604.09,0.0001863,2]
[324856029,1714373492812,-500.0,0.0001863,2]
[324856030,1714373492822,-693.58,0.0001863,2]
[324856031,1714373492831,-598.14,0.0001863,2]
[324856032,1714373492841,-591.07,0.0001863,2]
[324856033,1714373492850,-673.38,0.0001863,2]
[324856034,1714373492860,-533.22,0.0001863,2]
[324856035,1714373492869,-1230.36,0.0001863,2]
[324856036,1714373492880,-500.0,0.0001863,2]
[324856037,1714373492890,-1147.49,0.0001863,2]
[324856038,1714373492899,-1302.49,0.0001863,2]
[324856039,1714373492909,-844.49,0.0001863,2]
[324856040,1714373492919,-614.75,0.0001863,2]
[324856041,1714373492928,-1388.78,0.0001863,2]
[324856042,1714373492938,-623.41,0.0001863,2]
[324856043,1714373492948,-797.81,0.0001863,2]
[324856044,1714373492957,-590.29,0.0001863,2]
[324856045,1714373492967,-500.0,0.0001863,2]
[324856046,1714373492976,-807.83,0.0001863,2]
[324856047,1714373492985,-607.0,0.0001863,2]
[324856048,1714373492997,-940.83,0.0001863,2]
[324856049,1714373493007,-500.0,0.0001863,2]
[324856050,1714373493016,-782.16,0.0001863,2]
[324856051,1714373493025,-500.0,0.0001863,2]
[324856052,1714373493035,-520.06,0.0001863,2]
[324856053,1714373493044,-564.0,0.0001863,2]
[324856054,1714373493054,-851.11,0.0001863,2]
[324856055,1714373493063,-510.47,0.0001863,2]
[324856056,1714373493072,-360.43017569,0.0001863,2]
[324856057,1714373493081,-1533.33,0.0001863,2]
[324856058,1714373493091,-1895.96,0.0001863,2]
[324856059,1714373493101,-1322.31,0.0001863,2]
[324856060,1714373493111,-500.0,0.0001863,2]
[324856061,1714373493120,-1437.53,0.0001863,2]
[324856062,1714373493129,-1191.98,0.0001863,2]
[324856063,1714373493139,-1134.6,0.0001863,2]
[324856064,1714373493149,-1094.75,0.0001863,2]
[324856065,1714373493158,-510.32,0.0001863,2]
[324856066,1714373493167,-2552.95,0.0001863,2]
[324856067,1714373493177,-1704.43,0.0001863,2]
[324856068,1714373493186,-1486.42,0.0001863,2]
[324856069,1714373493195,-500.0,0.0001863,2]
[324856070,1714373493211,-500.0,0.0001863,2]
[324856071,1714373493220,-500.0,0.0001863,2]
[324856072,1714373493230,-725.26,0.0001863,2]
[324856073,1714373493239,-844.8,0.0001863,2]
[324856074,1714373493255,-663.85,0.0001863,2]
[324856075,1714373493265,-590.93,0.0001863,2]
[324856076,1714373493274,-963.94,0.0001863,2]
[324856077,1714373493283,-790.18,0.0001863,2]
[324856078,1714373493293,-1385.15,0.0001863,2]
[324856079,1714373493303,-904.16,0.0001863,2]
[324856080,1714373493312,-556.73,0.0001863,2]
[324856081,1714373493322,-500.0,0.0001863,2]
[324856082,1714373493331,-2612.66,0.0001863,2]
[324856083,1714373493340,-670.19,0.0001863,2]
[324856084,1714373493349,-5705.05,0.0001863,2]
[324856085,1714373493358,-3685.88,0.0001863,2]
[324856086,1714373493368,-3055.4,0.0001863,2]
[324856087,1714373493378,-500.0,0.0001863,2]
[324856088,1714373493387,-943.99,0.0001863,2]
[324856089,1714373493397,-500.0,0.0001863,2]
[324856090,1714373493408,-676.52,0.0001863,2]
[324856091,1714373493417,-2057.47,0.0001863,2]
[324856092,1714373493428,-598.25,0.0001863,2]
[324856093,1714373493438,-1272.21,0.0001863,2]
[324856094,1714373493447,-7316.87,0.0001863,2]
[324856095,1714373493456,-726.9,0.0001863,2]
[324856096,1714373493466,-797.11,0.0001863,2]
[324856097,1714373493477,-604.72,0.0001863,2]
[324856098,1714373493487,-500.0,0.0001863,2]
[324856099,1714373493500,-1382.46,0.0001863,2]
[324856100,1714373493509,-2899.35,0.0001863,2]
[324856101,1714373493519,-643.79,0.0001863,2]
[324856102,1714373493528,-1036.38,0.0001863,2]
[324856103,1714373493537,-3783.63,0.0001863,2]
[324856104,1714373493547,-567.55,0.0001863,2]
[324856105,1714373493557,-500.0,0.0001863,2]
[324856106,1714373493568,-1762.71,0.0001863,2]
[324856107,1714373493578,-544.02,0.0001863,2]
[324856108,1714373493587,-500.0,0.0001863,2]
[324856109,1714373493694,-909.69,0.0001863,2]
[324856110,1714373493714,-1544.95,0.0001863,2]
[324856111,1714373493724,-566.35,0.0001863,2]
[324856112,1714373493734,-1632.08,0.0001863,2]